bitfinex-derivatives/quotes_BTCF0:USTF0_20260127
["timestamp","ask_amount","ask_price","bid_price","bid_amount"]
[1769557120179,0.111822,89543.0,89530.0,0.00258838]
[1769557120387,0.0003856,89542.0,89530.0,0.00258838]
[1769557120592,0.0115676,89541.0,89530.0,0.00258838]
[1769557120793,0.0003856,89540.0,89521.0,0.011185]
[1769557120996,0.0003856,89538.0,89522.0,0.00258838]
[1769557123190,0.011183,89537.0,89522.0,0.00258838]
[1769557123691,0.011183,89535.0,89522.0,0.00258838]
[1769557123882,0.00086681,89534.0,89522.0,0.00258838]
[1769557124394,0.011184,89531.0,89522.0,0.00258838]
[1769557124697,0.011184,89531.0,89513.0,0.00782013]
[1769557124698,0.00087341,89528.0,89513.0,0.00782013]
[1769557124899,0.00087341,89528.0,89514.0,0.00258838]
[1769557127093,0.00101585,89526.0,89514.0,0.00258838]
[1769557128394,0.10064,89530.0,89516.0,0.00964213]
[1769557128602,0.0010736,89529.0,89517.0,0.00258838]
[1769557129494,0.011184,89528.0,89517.0,0.00258838]
[1769557131904,0.01210603,89528.0,89517.0,0.00258838]
[1769557132097,0.00093557,89527.0,89517.0,0.00258838]
[1769557132705,0.00093557,89527.0,89513.0,0.00782013]
[1769557132902,0.011185,89523.0,89513.0,0.01040851]
[1769557133302,0.011184,89527.0,89514.0,0.00968814]
[1769557133505,0.011184,89527.0,89515.0,0.00258838]
[1769557133800,0.01211957,89527.0,89515.0,0.00258838]
[1769557134004,0.011184,89525.0,89515.0,0.00258838]
[1769557134605,0.00093286,89526.0,89515.0,0.00258838]
[1769557135518,0.011185,89523.0,89515.0,0.00258838]
[1769557136998,0.01211786,89524.0,89515.0,0.00258838]
[1769557138202,0.00092103,89523.0,89515.0,0.00258838]
[1769557138508,0.011184,89525.0,89515.0,0.00258838]
[1769557139697,0.00092103,89527.0,89515.0,0.00258838]
[1769557139901,0.011184,89527.0,89516.0,0.00969298]
[1769557140099,0.011184,89527.0,89517.0,0.00258838]
[1769557140499,0.00090295,89529.0,89517.0,0.00258838]
[1769557141500,0.011184,89528.0,89517.0,0.00258838]
[1769557141810,0.111824,89528.0,89517.0,0.00258838]
[1769557142702,0.011184,89526.0,89517.0,0.00258838]
[1769557144207,0.011185,89524.0,89517.0,0.00258838]
[1769557144811,0.011185,89522.0,89513.0,0.00782013]
[1769557145012,0.011185,89522.0,89514.0,0.00086282]
[1769557145512,0.01377338,89522.0,89514.0,0.00086282]
[1769557145713,0.01377338,89522.0,89513.0,0.00782013]
[1769557145714,0.00135052,89521.0,89510.0,0.00011524]
[1769557145913,0.00258838,89520.0,89510.0,0.00011524]
[1769557146214,0.00384731,89520.0,89510.0,0.00011524]
[1769557146401,0.00384731,89520.0,89510.0,0.00097806]
[1769557147213,0.00384731,89520.0,89510.0,0.00011524]
[1769557147413,0.011185,89518.0,89510.0,0.00011524]
[1769557147716,0.00258838,89517.0,89510.0,0.00011524]
[1769557149718,0.011186,89516.0,89510.0,0.00011524]
[1769557149918,0.01377438,89516.0,89510.0,0.00011524]
[1769557150608,0.01377438,89516.0,89505.0,0.13332023]
[1769557150809,0.00398483,89516.0,89505.0,0.00086282]
[1769557151004,0.00398483,89516.0,89503.0,0.00966748]
[1769557151218,0.00295206,89513.0,89497.0,0.13332023]
[1769557151404,0.00295206,89511.0,89497.0,0.00086282]
[1769557151605,0.011187,89507.0,89497.0,0.13418305]
[1769557151809,0.00258838,89506.0,89497.0,0.00086282]
[1769557152010,0.00258838,89506.0,89498.0,0.00086282]
[1769557152211,0.00011524,89510.0,89498.0,0.00086282]
[1769557152412,0.10370493,89517.0,89498.0,0.00086282]
[1769557152413,0.011186,89516.0,89498.0,0.00086282]
[1769557152604,0.01377438,89516.0,89503.0,0.011187]
[1769557152808,0.01377438,89516.0,89504.0,0.00086282]
[1769557153205,0.01377438,89516.0,89504.0,0.0105303]
[1769557153725,0.01683931,89516.0,89504.0,0.0105303]
[1769557156717,0.00565331,89516.0,89507.0,0.011187]
[1769557157012,0.10064,89517.0,89508.0,0.00086282]
[1769557160113,0.011186,89515.0,89508.0,0.00086282]
[1769557164532,0.00315329,89516.0,89508.0,0.00086282]
[1769557164733,0.10064,89517.0,89508.0,0.00086282]
[1769557165032,0.1040299,89517.0,89508.0,0.00086282]
[1769557165935,0.10064,89517.0,89508.0,0.00086282]
[1769557166129,0.07677743,89517.0,89508.0,0.0107484]
[1769557166432,0.11379622,89530.0,89508.0,0.0107484]
[1769557166433,0.00340498,89530.0,89516.0,0.011185]
[1769557166631,0.00340498,89529.0,89517.0,0.00258838]
[1769557169024,0.10064,89531.0,89518.0,0.00988558]
[1769557169233,0.09064,89531.0,89521.0,0.00988558]
[1769557169429,0.07950225,89531.0,89525.0,0.00988558]
[1769557169621,0.07950225,89531.0,89530.0,0.00258838]
[1769557169822,0.07950225,89531.0,89521.0,0.00988558]
[1769557170028,0.009985,89535.0,89523.0,0.00086282]
[1769557170421,0.009985,89532.0,89515.0,0.00988558]
[1769557170730,0.009985,89530.0,89515.0,0.00086282]
[1769557170931,0.009985,89528.0,89515.0,0.00086282]
[1769557171132,0.009985,89523.0,89505.0,0.00988558]
[1769557171325,0.009985,89521.0,89506.0,0.1225754]
[1769557171528,0.01257338,89520.0,89506.0,0.1225754]
[1769557171925,0.01257338,89520.0,89507.0,0.00988558]
[1769557172131,0.01257338,89520.0,89508.0,0.00086282]
[1769557172433,0.01257338,89520.0,89509.0,0.011186]
[1769557172635,0.01257338,89520.0,89510.0,0.00086282]
[1769557172833,0.009985,89519.0,89510.0,0.00086282]
[1769557173041,0.009985,89517.0,89510.0,0.00086282]
[1769557173227,0.009985,89516.0,89506.0,0.011187]
[1769557173422,0.01257338,89515.0,89506.0,0.11268982]
[1769557173622,0.009985,89515.0,89506.0,0.11268982]
[1769557173829,0.009985,89524.0,89506.0,0.11268982]
[1769557174432,0.009985,89522.0,89506.0,0.01204982]
[1769557174726,0.009985,89522.0,89506.0,0.11268982]
[1769557176428,0.009985,89522.0,89506.0,0.01204982]
[1769557176921,0.009985,89522.0,89506.0,0.0219354]
[1769557177122,0.009985,89522.0,89508.0,0.011186]
[1769557177325,0.011184,89528.0,89513.0,0.00988558]
[1769557177529,0.009985,89523.0,89514.0,0.00258838]
[1769557180438,0.009985,89521.0,89507.0,0.011187]
[1769557180640,0.009985,89521.0,89509.0,0.00258838]
[1769557181440,0.009985,89521.0,89512.0,0.011186]
[1769557181641,0.009985,89521.0,89513.0,0.00258838]
[1769557184043,0.009985,89517.0,89501.0,0.00988558]
[1769557184240,0.009985,89517.0,89502.0,0.00258838]
[1769557185440,0.009985,89517.0,89504.0,0.011187]
[1769557185637,0.009985,89516.0,89505.0,0.00258838]
[1769557186847,0.009985,89516.0,89505.0,0.01377538]
[1769557187033,0.009985,89516.0,89507.0,0.011187]
[1769557187237,0.009985,89516.0,89510.0,0.011186]
[1769557187536,0.11379622,89530.0,89511.0,0.00258838]
[1769557188449,0.011185,89522.0,89511.0,0.00258838]
[1769557188849,0.011185,89520.0,89511.0,0.00258838]
[1769557189553,0.009985,89518.0,89511.0,0.00258838]
[1769557190043,0.009985,89516.0,89500.0,0.1236818]
[1769557190251,0.009985,89509.0,89500.0,0.00258838]
[1769557192055,0.009985,89508.0,89500.0,0.00258838]
[1769557195461,0.011186,89512.0,89500.0,0.00258838]
[1769557195653,0.10064,89520.0,89505.0,0.00917209]
[1769557195852,0.011186,89516.0,89506.0,0.00258838]
[1769557196254,0.00994513,89518.0,89506.0,0.00258838]
[1769557197559,0.00994513,89518.0,89506.0,0.01176047]
[1769557197760,0.10064,89520.0,89507.0,0.00917209]
[1769557197960,0.10064,89520.0,89508.0,0.00258838]
[1769557198756,0.11058513,89520.0,89508.0,0.00258838]
[1769557200161,0.00994513,89519.0,89508.0,0.00258838]
[1769557200956,0.00994513,89517.0,89500.0,0.11379622]
[1769557201260,0.00994513,89528.0,89508.0,0.00917209]
[1769557201554,0.00994513,89523.0,89509.0,0.00258838]
[1769557201762,0.00994513,89521.0,89509.0,0.00258838]
[1769557202561,0.00994513,89521.0,89509.0,0.01377438]
[1769557202756,0.00994513,89522.0,89509.0,0.00258838]
[1769557205161,0.00994513,89521.0,89509.0,0.00258838]
[1769557206563,0.011183,89534.0,89511.0,0.00917209]
[1769557206765,0.011183,89534.0,89517.0,0.00917209]
[1769557206964,0.011184,89532.0,89518.0,0.00258838]
[1769557207258,0.10064,89535.0,89520.0,0.12498122]
[1769557207563,0.10064,89535.0,89522.0,0.00917209]
[1769557207767,0.10064,89535.0,89523.0,0.00258838]
[1769557208565,0.10840593,89535.0,89523.0,0.00258838]
[1769557208965,0.10840593,89535.0,89524.0,0.011184]
[1769557209167,0.10840593,89535.0,89525.0,0.00258838]
[1769557210768,0.00760157,89534.0,89525.0,0.00258838]
[1769557212862,0.10064,89535.0,89525.0,0.00258838]
[1769557213168,0.10064,89535.0,89526.0,0.011184]
[1769557213363,0.10064,89535.0,89527.0,0.00258838]
[1769557213565,0.00802526,89534.0,89519.0,0.10064]
[1769557213761,0.00802526,89530.0,89519.0,0.00258838]
[1769557215568,0.00802526,89530.0,89519.0,0.01377338]
[1769557217071,0.00802526,89530.0,89525.0,0.011184]
[1769557217273,0.10846984,89535.0,89529.0,0.00258838]
[1769557217773,0.002588,89534.0,89520.0,0.00917209]
[1769557217974,0.10846984,89535.0,89521.0,0.01003529]
[1769557218165,0.11105784,89535.0,89521.0,0.01003529]
[1769557218472,0.10846984,89535.0,89521.0,0.01003529]
[1769557219373,0.10846984,89535.0,89521.0,0.02122029]
[1769557219977,0.10846984,89535.0,89522.0,0.00917209]
[1769557220273,0.10846984,89535.0,89523.0,0.0008632]
[1769557220873,0.10846984,89535.0,89524.0,0.011185]
[1769557221174,0.10064,89535.0,89526.0,0.011184]
[1769557221375,0.00756157,89543.0,89530.0,0.011184]
[1769557221671,0.01014957,89543.0,89531.0,0.0008632]
[1769557222170,0.00756157,89542.0,89531.0,0.0008632]
[1769557222377,0.00756157,89541.0,89531.0,0.0008632]
[1769557226783,0.01014957,89541.0,89531.0,0.0008632]
[1769557226981,0.0075904,89540.0,89531.0,0.0008632]
[1769557227375,0.00757563,89547.0,89531.0,0.0008632]
[1769557227668,0.00757563,89546.0,89533.0,0.011183]
[1769557227873,0.00757563,89546.0,89534.0,0.0008632]
[1769557228069,0.01016363,89546.0,89534.0,0.0008632]
[1769557228274,0.00757563,89545.0,89534.0,0.0008632]
[1769557228482,0.111822,89548.0,89534.0,0.00989149]
[1769557228783,0.00757563,89547.0,89534.0,0.00989149]
[1769557229982,0.01016363,89547.0,89534.0,0.00989149]
[1769557230282,0.00768363,89546.0,89534.0,0.0008632]
[1769557230489,0.01027163,89546.0,89534.0,0.0008632]
[1769557230882,0.00768363,89544.0,89534.0,0.0008632]
[1769557231086,0.00770311,89539.0,89526.0,0.011184]
[1769557231275,0.00770311,89537.0,89529.0,0.0008632]
[1769557232386,0.002588,89536.0,89529.0,0.0008632]
[1769557232574,0.002588,89536.0,89527.0,0.111824]
[1769557232575,0.00770311,89535.0,89527.0,0.111824]
[1769557232776,0.00770311,89535.0,89528.0,0.011184]
[1769557232976,0.00770311,89535.0,89529.0,0.0008632]
[1769557233788,0.01029111,89535.0,89529.0,0.0008632]
[1769557234183,0.00770311,89535.0,89529.0,0.0008632]
[1769557236682,0.00771519,89534.0,89519.0,0.09802838]
[1769557236888,0.00771519,89532.0,89523.0,0.0008632]
[1769557237486,0.01030319,89532.0,89523.0,0.0008632]
[1769557237784,0.01030319,89532.0,89520.0,0.08900009]
[1769557237982,0.01030319,89532.0,89521.0,0.45952]
[1769557237983,0.00773967,89531.0,89521.0,0.45952]
[1769557238286,0.01032767,89530.0,89521.0,0.4603832]
[1769557238479,0.01032767,89530.0,89521.0,0.011185]
[1769557238679,0.01032767,89530.0,89522.0,0.10064]
[1769557238879,0.00773967,89529.0,89522.0,0.10064]
[1769557239188,0.01032767,89529.0,89522.0,0.10064]
[1769557241086,0.01032767,89529.0,89521.0,0.0008632]
[1769557241290,0.00770088,89526.0,89519.0,0.09293912]
[1769557241493,0.002588,89526.0,89519.0,0.09293912]
[1769557242990,0.00024847,89525.0,89519.0,0.09293912]
[1769557243179,0.002588,89524.0,89519.0,0.09293912]
[1769557243380,0.002588,89524.0,89519.0,0.09380232]
[1769557244190,0.002588,89524.0,89517.0,0.011185]
[1769557244790,0.00283647,89524.0,89517.0,0.0120482]
[1769557245987,0.00283647,89524.0,89517.0,0.011185]
[1769557246887,0.00283647,89524.0,89517.0,0.0120482]
[1769557247284,0.002588,89524.0,89518.0,0.011185]
[1769557247485,0.10064,89536.0,89519.0,0.0008632]
[1769557247684,0.002588,89535.0,89519.0,0.0008632]
[1769557248590,0.011184,89533.0,89519.0,0.0008632]
[1769557248789,0.002588,89532.0,89519.0,0.0008632]
[1769557249188,0.002588,89532.0,89521.0,0.011185]
[1769557249387,0.002588,89532.0,89512.0,0.14450623]
[1769557249388,0.111823,89536.0,89523.0,0.01031901]
[1769557249593,0.002588,89531.0,89524.0,0.0008632]
[1769557257400,0.011184,89528.0,89516.0,0.01024856]
[1769557257601,0.002588,89527.0,89510.0,0.13332023]
[1769557257795,0.011185,89520.0,89509.0,0.13418343]
[1769557257995,0.013773,89519.0,89507.0,0.13332023]
[1769557258196,0.011185,89517.0,89507.0,0.0008632]
[1769557258398,0.002588,89516.0,89507.0,0.0008632]
[1769557260899,0.002588,89516.0,89503.0,0.13332023]
[1769557260900,0.011186,89513.0,89503.0,0.13332023]
[1769557261089,0.011186,89511.0,89503.0,0.13332023]
[1769557261409,0.011186,89511.0,89499.0,0.16560662]
[1769557261410,0.011186,89509.0,89499.0,0.13332023]
[1769557261604,0.002588,89508.0,89499.0,0.13418343]
[1769557261896,0.011186,89512.0,89499.0,0.13418343]
[1769557262203,0.002588,89511.0,89499.0,0.0008632]
[1769557262810,0.011186,89510.0,89499.0,0.0008632]
[1769557262997,0.002588,89509.0,89493.0,0.01041729]
[1769557263203,0.002588,89509.0,89489.0,0.14932009]
[1769557263404,0.011188,89494.0,89484.0,0.02725731]
[1769557263612,0.013776,89494.0,89484.0,0.02725731]
[1769557264804,0.002588,89494.0,89484.0,0.02725731]
[1769557265206,0.002588,89494.0,89485.0,0.0106427]
[1769557265517,0.011188,89500.0,89487.0,0.0106427]
[1769557265706,0.002588,89499.0,89488.0,0.0008632]
[1769557269517,0.011188,89498.0,89488.0,0.0008632]
[1769557269721,0.002588,89497.0,89488.0,0.0008632]
[1769557269920,0.011187,89501.0,89488.0,0.0008632]
[1769557270120,0.011188,89499.0,89488.0,0.0008632]
[1769557270417,0.002588,89498.0,89488.0,0.0008632]
[1769557288828,0.011189,89490.0,89480.0,0.11148592]
[1769557289129,0.011189,89488.0,89479.0,0.16669759]
[1769557289427,0.00258838,89487.0,89476.0,0.16669759]
[1769557289620,0.011189,89486.0,89476.0,0.16669759]
[1769557290132,0.01377738,89486.0,89476.0,0.16669759]
[1769557290830,0.01119,89484.0,89476.0,0.16669759]
[1769557291033,0.00258838,89483.0,89476.0,0.16669759]
[1769557291329,0.00258838,89483.0,89477.0,0.16669759]
[1769557291724,0.01119,89482.0,89476.0,0.16669759]
[1769557291922,0.01377838,89482.0,89473.0,0.16669759]
[1769557292429,0.01377838,89482.0,89474.0,0.16669759]
[1769557292629,0.00258838,89482.0,89474.0,0.16669759]
[1769557292834,0.011189,89487.0,89474.0,0.16669759]
[1769557293132,0.011185,89520.0,89482.0,0.01106085]
[1769557293438,0.00258838,89502.0,89491.0,0.01106085]
[1769557294125,0.011188,89499.0,89486.0,0.01106085]
[1769557294326,0.01377638,89499.0,89486.0,0.01106085]
[1769557296442,0.011188,89497.0,89486.0,0.01106085]
[1769557296735,0.10068,89509.0,89486.0,0.01106085]
[1769557297036,0.011187,89507.0,89486.0,0.01106085]
[1769557297240,0.011188,89500.0,89486.0,0.01106085]
[1769557297437,0.01377638,89500.0,89486.0,0.01106085]
[1769557299231,0.00258838,89500.0,89482.0,0.01101666]
[1769557300337,0.011188,89497.0,89482.0,0.01101666]
[1769557300539,0.00258838,89496.0,89482.0,0.01101666]
[1769557301838,0.011188,89495.0,89482.0,0.01101666]
[1769557302038,0.01377638,89495.0,89482.0,0.01101666]
[1769557303040,0.011188,89493.0,89482.0,0.01101666]
[1769557303231,0.00258838,89495.0,89482.0,0.01101666]
[1769557303738,0.011189,89492.0,89482.0,0.01101666]
[1769557303939,0.01377738,89492.0,89482.0,0.01101666]
[1769557304132,0.00258838,89492.0,89482.0,0.01101666]
[1769557304346,0.011188,89494.0,89482.0,0.01101666]
[1769557304535,0.011188,89500.0,89485.0,0.02217714]
[1769557304735,0.00258838,89499.0,89487.0,0.011189]
[1769557305343,0.00258838,89499.0,89488.0,0.0109675]
[1769557305933,0.011187,89501.0,89488.0,0.0109675]
[1769557306144,0.10807881,89500.0,89491.0,0.0109675]
[1769557306344,0.00258838,89500.0,89491.0,0.0109675]
[1769557307241,0.10068,89503.0,89491.0,0.0109675]
[1769557307433,0.1106668,89502.0,89491.0,0.0109675]
[1769557307635,0.00258838,89502.0,89491.0,0.0109675]
[1769557308443,0.011187,89501.0,89491.0,0.0109675]
[1769557308842,0.01377538,89501.0,89491.0,0.0109675]
[1769557309045,0.00258838,89501.0,89491.0,0.0109675]
[1769557309543,0.10068,89504.0,89491.0,0.0109675]
[1769557309733,0.10808221,89503.0,89491.0,0.0109675]
[1769557309935,0.10808221,89502.0,89491.0,0.0109675]
[1769557310141,0.00258838,89502.0,89491.0,0.0109675]
[1769557311446,0.11219035,89501.0,89491.0,0.0109675]
[1769557311751,0.11219035,89500.0,89491.0,0.0109675]
[1769557311930,0.10068,89504.0,89492.0,0.011189]
[1769557312136,0.10326838,89504.0,89495.0,0.00946184]
[1769557312348,0.11445538,89504.0,89490.0,0.12329471]
[1769557312538,0.00815135,89501.0,89485.0,0.00946184]
[1769557312845,0.00815135,89498.0,89485.0,0.00946184]
[1769557313147,0.00258838,89497.0,89485.0,0.00946184]
[1769557315940,0.011188,89494.0,89474.0,0.011191]
[1769557316140,0.01161873,89493.0,89476.0,0.01119]
[1769557316444,0.00903035,89492.0,89476.0,0.01119]
[1769557316645,0.01161873,89491.0,89476.0,0.01119]
[1769557317946,0.01161873,89491.0,89473.0,0.011191]
[1769557318146,0.01161873,89491.0,89475.0,0.00987422]
[1769557318749,0.00903035,89490.0,89475.0,0.00987422]
[1769557318949,0.00258838,89489.0,89475.0,0.00987422]
[1769557320250,0.01161873,89489.0,89475.0,0.00987422]
[1769557321156,0.011189,89488.0,89476.0,0.10068]
[1769557321446,0.00258838,89487.0,89476.0,0.00987422]
[1769557321648,0.00258838,89487.0,89468.0,2.2e-07]
[1769557321849,0.00258838,89487.0,89460.0,0.11383287]
[1769557322046,0.00903035,89484.0,89460.0,0.2213858]
[1769557322353,0.00903035,89469.0,89458.0,0.02640268]
[1769557322545,0.00903035,89469.0,89459.0,0.2213858]
[1769557322546,0.01161873,89468.0,89459.0,0.2213858]
[1769557323249,0.00258838,89468.0,89459.0,0.2213858]
[1769557324053,0.00258838,89468.0,89460.0,0.00987422]
[1769557325057,0.00903035,89467.0,89458.0,0.02640268]
[1769557325246,0.00258838,89466.0,89458.0,0.02640268]
[1769557325751,0.00086262,89465.0,89458.0,0.02640268]
[1769557327749,0.00086262,89465.0,89450.0,1e-08]
[1769557327750,0.00903035,89462.0,89450.0,1e-08]
[1769557328051,0.00086262,89461.0,89452.0,0.2213858]
[1769557328251,0.00086262,89461.0,89453.0,0.00258838]
[1769557329259,0.00903035,89460.0,89448.0,0.10068]
[1769557329458,0.00989297,89459.0,89449.0,0.2213858]
[1769557329654,0.02108597,89459.0,89449.0,0.00258838]
[1769557329855,0.00989297,89459.0,89449.0,0.00258838]
[1769557330049,0.0001008,89464.0,89450.0,0.00987422]
[1769557330249,0.00096342,89464.0,89452.0,0.00987422]
[1769557330549,0.00096342,89464.0,89449.0,0.2213858]
[1769557330550,0.00096342,89464.0,89453.0,0.0124626]
[1769557330957,0.00096342,89464.0,89454.0,0.00987422]
[1769557331154,0.00096342,89464.0,89455.0,0.00258838]
[1769557334967,0.00903035,89453.0,89441.0,0.00987422]
[1769557335151,0.00903035,89453.0,89442.0,0.22397418]
[1769557335152,0.00086262,89452.0,89442.0,0.22397418]
[1769557335356,0.011194,89449.0,89442.0,0.22397418]
[1769557335558,0.00010355,89448.0,89442.0,0.2213858]
[1769557335867,0.00086262,89447.0,89442.0,0.2213858]
[1769557336165,0.00086262,89447.0,89434.0,0.011196]
[1769557336369,0.00086262,89447.0,89436.0,0.00258838]
[1769557336662,0.00086262,89447.0,89438.0,0.011195]
[1769557336863,0.00086262,89447.0,89439.0,0.00258838]
[1769557343870,0.00086262,89447.0,89439.0,0.00209149]
[1769557345080,0.00086262,89447.0,89439.0,0.00209169]
[1769557349177,0.00086262,89447.0,89428.0,0.10072]
[1769557349381,0.00086262,89447.0,89429.0,0.00209169]
[1769557349382,0.01012423,89447.0,89429.0,0.00209169]
[1769557349581,0.011195,89443.0,89429.0,0.01328769]
[1769557349779,0.00135951,89442.0,89429.0,0.01328769]
[1769557352586,0.00135951,89442.0,89434.0,0.011196]
[1769557352787,0.00135951,89442.0,89435.0,0.01328769]
[1769557353790,0.00135951,89442.0,89436.0,0.011196]
[1769557353988,0.00010355,89448.0,89441.0,0.011195]
[1769557354289,0.03356348,89447.0,89442.0,0.00258838]
[1769557354491,0.10072,89452.0,89442.0,0.00258838]
[1769557354789,0.10072,89452.0,89439.0,0.011195]
[1769557354992,0.10072,89452.0,89440.0,0.00258838]
[1769557356486,0.111914,89452.0,89440.0,0.00258838]
[1769557359001,0.10998161,89452.0,89425.0,0.10072]
[1769557359301,0.011194,89450.0,89435.0,0.011196]
[1769557359501,0.011194,89450.0,89436.0,0.00258838]
[1769557360001,0.10998161,89452.0,89436.0,0.00258838]
[1769557360002,0.011194,89449.0,89436.0,0.00258838]
[1769557363695,0.011194,89448.0,89436.0,0.00258838]
[1769557364397,0.011194,89446.0,89436.0,0.00258838]
[1769557365006,0.00926161,89450.0,89436.0,0.00258838]
[1769557365205,0.011194,89448.0,89436.0,0.00258838]
[1769557365703,0.011194,89448.0,89437.0,0.00376894]
[1769557365908,0.011194,89448.0,89437.0,0.00635732]
[1769557366109,0.1175824,89447.0,89437.0,0.00635732]
[1769557366405,0.1175824,89446.0,89437.0,0.00635732]
[1769557366605,0.1175824,89445.0,89437.0,0.00635732]
[1769557366798,0.1287774,89444.0,89429.0,0.011196]
[1769557367000,0.11758401,89443.0,89431.0,0.00376894]
[1769557367201,0.011195,89444.0,89432.0,0.00636089]
[1769557367401,0.12877988,89443.0,89432.0,0.00636089]
[1769557367602,0.011195,89443.0,89432.0,0.00636089]
[1769557368203,0.011195,89441.0,89432.0,0.00636089]
[1769557368402,0.011195,89440.0,89427.0,0.00377251]
[1769557368602,0.02045661,89439.0,89427.0,0.10708089]
[1769557369102,0.011195,89437.0,89427.0,0.00636089]
[1769557369505,0.00926161,89438.0,89427.0,0.00636089]
[1769557369709,0.011195,89440.0,89428.0,0.00376125]
[1769557369909,0.011195,89440.0,89428.0,0.00634963]
[1769557370105,0.00926161,89442.0,89429.0,0.00376125]
[1769557370410,0.00926161,89442.0,89430.0,0.01754563]
[1769557370810,0.00926161,89442.0,89431.0,0.00376125]
[1769557371006,0.00926161,89442.0,89431.0,0.00634963]
[1769557374814,0.00972832,89451.0,89431.0,0.00634963]
[1769557375011,0.00972832,89449.0,89431.0,0.00634963]
[1769557375217,0.00972832,89447.0,89432.0,0.00384512]
[1769557375411,0.11040786,89446.0,89437.0,0.011195]
[1769557375614,0.02119046,89454.0,89438.0,0.01378338]
[1769557375809,0.00999746,89453.0,89439.0,0.00258838]
[1769557376010,0.00999746,89453.0,89439.0,0.01378338]
[1769557376210,0.00999746,89451.0,89439.0,0.00258838]
[1769557378222,0.00995592,89450.0,89439.0,0.00258838]
[1769557379228,0.10072,89458.0,89433.0,0.011196]
[1769557379229,0.00995647,89447.0,89433.0,0.011196]
[1769557379526,0.00995647,89447.0,89434.0,0.00258838]
[1769557380928,0.011194,89446.0,89434.0,0.00258838]
[1769557381231,0.00996597,89445.0,89434.0,0.00258838]
[1769557384031,0.00995464,89453.0,89436.0,0.00013606]
[1769557384328,0.10072,89452.0,89441.0,0.00013606]
[1769557384519,0.10072,89452.0,89442.0,0.00258838]
[1769557385232,0.00994951,89451.0,89442.0,0.00258838]
[1769557385416,0.10072,89452.0,89433.0,0.00015144]
[1769557385417,0.02114351,89446.0,89433.0,0.00015144]
[1769557385618,0.02114351,89446.0,89434.0,0.00273982]
[1769557385928,0.00994951,89446.0,89434.0,0.00273982]
[1769557386130,0.011194,89449.0,89435.0,0.00015144]
[1769557386319,0.00994951,89450.0,89437.0,0.00015144]
[1769557386519,0.00994951,89450.0,89437.0,0.00273982]
[1769557387426,0.11348542,89449.0,89437.0,0.00273982]
[1769557387719,0.11348542,89448.0,89437.0,0.00273982]
[1769557387924,0.11348542,89447.0,89437.0,0.01393482]
[1769557388126,0.00994951,89450.0,89437.0,0.01393482]
[1769557388326,0.11348548,89449.0,89437.0,0.01393482]
[1769557388528,0.11348548,89448.0,89437.0,0.01393482]
[1769557388831,0.11348548,89447.0,89437.0,0.01393482]
[1769557389028,0.11348551,89446.0,89437.0,0.01393482]
[1769557389234,0.2948,89462.0,89437.0,0.01393482]
[1769557389235,0.01002469,89460.0,89437.0,0.00258838]
[1769557389429,0.01002469,89460.0,89445.0,0.011194]
[1769557389627,0.01002469,89460.0,89446.0,0.00258838]
[1769557389930,0.02121769,89460.0,89446.0,0.00258838]
[1769557390132,0.01002469,89459.0,89446.0,0.00258838]
[1769557390645,0.011193,89458.0,89446.0,0.00258838]
[1769557390935,0.01002469,89457.0,89446.0,0.00258838]
[1769557395025,0.01009415,89456.0,89446.0,0.00258838]
[1769557397837,0.011193,89455.0,89446.0,0.00258838]
[1769557398629,0.02128727,89455.0,89446.0,0.00258838]
[1769557401134,0.10889327,89454.0,89446.0,0.00258838]
[1769557401334,0.10889327,89453.0,89446.0,0.00258838]
[1769557401531,0.10889327,89452.0,89446.0,0.00258838]
[1769557401735,0.02128727,89455.0,89446.0,0.00258838]
[1769557401926,0.10627379,89454.0,89446.0,0.00258838]
[1769557402236,0.10627379,89453.0,89446.0,0.00258838]
[1769557402533,0.10627379,89452.0,89446.0,0.00258838]
[1769557402735,0.02128727,89455.0,89446.0,0.00258838]
[1769557402929,0.10627619,89454.0,89446.0,0.00258838]
[1769557403129,0.10627619,89453.0,89446.0,0.00258838]
[1769557403426,0.10627619,89452.0,89446.0,0.00258838]
[1769557403625,0.01010163,89450.0,89430.0,0.11394684]
[1769557403833,0.01010163,89450.0,89438.0,0.00258838]
[1769557405034,0.01013321,89445.0,89432.0,0.011196]
[1769557405241,0.01013321,89444.0,89433.0,0.10072]
[1769557405540,0.01013321,89444.0,89434.0,0.011196]
[1769557405742,0.01013321,89444.0,89434.0,0.01378438]
[1769557405931,0.01013321,89444.0,89434.0,0.00258838]
[1769557406234,0.01013321,89457.0,89434.0,0.00258838]
[1769557406439,0.01013321,89454.0,89440.0,0.11394684]
[1769557406644,0.01013321,89452.0,89441.0,0.00258838]
[1769557406941,0.11642156,89451.0,89441.0,0.00258838]
[1769557407142,0.01013321,89451.0,89441.0,0.00258838]
[1769557408243,0.0101659,89450.0,89436.0,0.011195]
[1769557408434,0.0101659,89449.0,89436.0,0.00258838]
[1769557409236,0.011194,89448.0,89436.0,0.00258838]
[1769557409438,0.01023689,89447.0,89436.0,0.00258838]
[1769557417260,0.01023689,89447.0,89436.0,0.01378338]
[1769557417758,0.01023689,89447.0,89436.0,0.00258838]
[1769557419260,0.01023641,89445.0,89436.0,0.00258838]
[1769557424167,0.01023641,89445.0,89432.0,0.011196]
[1769557424366,0.01023641,89445.0,89432.0,0.01378438]
[1769557427671,0.01023641,89445.0,89434.0,0.011196]
[1769557427860,0.01023641,89445.0,89435.0,0.00258838]
[1769557428870,0.01024809,89452.0,89435.0,0.00258838]
[1769557429168,0.01026789,89450.0,89438.0,0.011195]
[1769557429368,0.01026789,89450.0,89439.0,0.00258838]
[1769557435477,0.0264173,89482.0,89450.0,0.00939709]
[1769557435777,0.3246906,89502.0,89472.0,0.00939709]
[1769557435983,0.011189,89491.0,89473.0,0.00258838]
[1769557436273,0.11394684,89490.0,89473.0,0.00258838]
[1769557436480,0.011189,89489.0,89473.0,0.00258838]
[1769557436670,0.11394684,89490.0,89473.0,0.00258838]
[1769557436671,0.011189,89487.0,89473.0,0.00258838]
[1769557437477,0.00938107,89486.0,89473.0,0.00258838]
[1769557437876,0.00938107,89482.0,89473.0,0.00258838]
[1769557438179,0.00938107,89482.0,89471.0,0.10072]
[1769557438478,0.00938107,89482.0,89471.0,0.10330838]
[1769557438868,0.00938107,89482.0,89472.0,0.011191]
[1769557439074,0.00938107,89482.0,89468.0,0.011191]
[1769557439281,0.00938107,89482.0,89469.0,0.10072]
[1769557439480,0.00938107,89482.0,89469.0,0.10330838]
[1769557440386,0.00938107,89482.0,89470.0,0.011191]
[1769557440583,0.00938107,89482.0,89471.0,0.00258838]
[1769557443081,0.00938107,89482.0,89472.0,0.011191]
[1769557443383,0.00938107,89482.0,89473.0,0.00258838]
[1769557443780,0.00938107,89482.0,89475.0,0.011191]